bitfinex/quotes_BTCUSD_20230905
["timestamp","ask_amount","ask_price","bid_price","bid_amount"]
[1693939786807,3.77767328,25756.0,25755.0,0.0021]
[1693939787627,3.77767328,25756.0,25755.0,0.0011]
[1693939787628,3.75367328,25756.0,25755.0,0.0011]
[1693939788236,3.77767328,25756.0,25755.0,0.0021]
[1693939789481,3.75767328,25756.0,25755.0,0.0021]
[1693939796918,4.03694268,25756.0,25755.0,0.0021]
[1693939797692,4.01694268,25756.0,25755.0,0.0021]
[1693939798049,4.03694268,25756.0,25755.0,0.0021]
[1693939798471,3.75767328,25756.0,25755.0,0.0021]
[1693939806025,4.03694268,25756.0,25755.0,0.0021]
[1693939806226,3.75767328,25756.0,25755.0,0.0021]
[1693939806429,4.03694268,25756.0,25755.0,0.0021]
[1693939807155,3.75767328,25756.0,25755.0,0.0021]
[1693939807356,4.01694268,25756.0,25755.0,0.0021]
[1693939808166,3.73767328,25756.0,25755.0,0.0021]
[1693939808462,4.01692911,25756.0,25755.0,0.0021]
[1693939816899,3.73767328,25756.0,25755.0,0.0021]
[1693939818464,3.72591953,25756.0,25755.0,0.0021]
[1693939825883,3.73773579,25756.0,25755.0,0.0021]
[1693939833542,3.86233721,25756.0,25755.0,0.0021]
[1693939833742,3.72591953,25756.0,25755.0,0.0021]
[1693939833945,3.86885395,25756.0,25755.0,0.0021]
[1693939834148,3.72591953,25756.0,25755.0,0.0021]
[1693939834572,3.87840527,25756.0,25755.0,0.0021]
[1693939834747,3.72591953,25756.0,25755.0,0.0021]
[1693939835975,3.87077223,25756.0,25755.0,0.0021]
[1693939837149,3.72591953,25756.0,25755.0,0.0021]
[1693939837581,3.90108553,25756.0,25755.0,0.0021]
[1693939837762,3.72591953,25756.0,25755.0,0.0021]
[1693939840802,3.86372758,25756.0,25755.0,0.0021]
[1693939841180,3.72591953,25756.0,25755.0,0.0021]
[1693939841410,3.84461229,25756.0,25755.0,0.0021]
[1693939841610,3.43796702,25756.0,25755.0,0.0021]
[1693939841813,3.71742124,25756.0,25755.0,0.0021]
[1693939843188,3.71742124,25756.0,25755.0,0.01822918]
[1693939843398,3.71742124,25756.0,25755.0,0.0021]
[1693939846495,4.04262192,25756.0,25755.0,0.0021]
[1693939846681,3.7631677,25756.0,25755.0,0.0021]
[1693939849038,3.7631677,25756.0,25755.0,0.01822918]
[1693939854187,3.7631677,25756.0,25752.0,0.22831442]
[1693939854188,0.04,25754.0,25752.0,0.22831442]
[1693939854459,0.91629232,25753.0,25752.0,0.22831442]
[1693939854664,0.91629232,25753.0,25752.0,0.92831442]
[1693939854864,0.91629232,25753.0,25752.0,0.72411388]
[1693939855205,1.69290032,25753.0,25752.0,0.72411388]
[1693939855408,1.69290032,25753.0,25752.0,0.72511388]
[1693939855615,1.69290032,25753.0,25752.0,0.72411388]
[1693939856034,1.69290032,25753.0,25752.0,0.72511388]
[1693939856035,1.71690032,25753.0,25752.0,0.72511388]
[1693939856239,1.71690032,25753.0,25752.0,0.72611388]
[1693939856467,1.71690032,25753.0,25752.0,0.74174415]
[1693939856850,1.71690032,25753.0,25752.0,0.74074415]
[1693939857047,1.74090032,25753.0,25752.0,0.74174415]
[1693939857633,0.96429232,25753.0,25752.0,0.74174415]
[1693939859095,1.74090032,25753.0,25752.0,0.74174415]
[1693939859292,1.74090032,25753.0,25752.0,0.71763027]
[1693939860887,1.74090032,25753.0,25752.0,0.01763027]
[1693939861088,1.95066866,25753.0,25752.0,0.01763027]
[1693939861373,3.26298337,25753.0,25752.0,0.01763027]
[1693939861982,3.41839637,25753.0,25752.0,0.01763027]
[1693939862641,3.46495781,25753.0,25752.0,0.01763027]
[1693939863884,3.41838669,25753.0,25752.0,0.01763027]
[1693939864123,3.65119389,25753.0,25752.0,0.01763027]
[1693939864441,3.41838669,25753.0,25752.0,0.01763027]
[1693939866613,3.65119389,25753.0,25752.0,0.01763027]
[1693939866995,3.41838669,25753.0,25752.0,0.01763027]
[1693939867631,3.65119389,25753.0,25752.0,0.01763027]
[1693939867837,3.41838669,25753.0,25752.0,0.01763027]
[1693939868988,3.65119389,25753.0,25752.0,0.01763027]
[1693939873245,3.26454862,25753.0,25752.0,0.01763027]
[1693939873667,3.03174142,25753.0,25752.0,0.01763027]
[1693939882638,3.26454862,25753.0,25752.0,0.01763027]
[1693939888460,2.54167688,25753.0,25752.0,0.01763027]
[1693939890647,2.64417688,25753.0,25752.0,0.01763027]
[1693939902475,2.65457651,25753.0,25752.0,0.01763027]
[1693939913489,3.20827777,25753.0,25752.0,0.01763027]
[1693939913866,3.20827777,25753.0,25752.0,0.002]
[1693939913867,3.48773199,25753.0,25752.0,0.002]
[1693939914354,3.26827777,25753.0,25752.0,0.002]
[1693939915220,3.39077777,25753.0,25752.0,0.002]
[1693939915417,3.39077777,25753.0,25747.0,0.02]
[1693939915418,0.06,25752.0,25747.0,0.02]
[1693939915629,0.24224884,25748.0,25747.0,0.02]
[1693939915828,2.18241211,25748.0,25747.0,0.02]
[1693939916279,2.18241211,25748.0,25747.0,0.03608346]
[1693939916280,3.74643591,25748.0,25747.0,0.03608346]
[1693939916481,3.74643591,25748.0,25747.0,0.02]
[1693939916693,3.8395917,25748.0,25747.0,0.02]
[1693939916911,4.12235104,25748.0,25747.0,0.02]
[1693939917733,4.17035104,25748.0,25747.0,0.024]
[1693939917935,4.0306022,25748.0,25747.0,0.024]
[1693939920313,4.0306022,25748.0,25747.0,0.004]
[1693939921139,4.0306022,25748.0,25747.0,0.024]
[1693939921563,4.0306022,25748.0,25747.0,0.004]
[1693939922213,4.0306022,25748.0,25747.0,0.04008346]
[1693939925460,3.93744641,25748.0,25747.0,0.04008346]
[1693939926033,3.93744641,25748.0,25747.0,0.02008346]
[1693939927073,3.93744641,25748.0,25747.0,0.04008346]
[1693939927416,3.93744641,25748.0,25747.0,0.02008346]
[1693939928032,3.93744641,25748.0,25747.0,0.04008346]
[1693939928568,3.93744641,25748.0,25747.0,0.02008346]
[1693939930320,3.257536,25748.0,25747.0,0.02008346]
[1693939930530,3.257536,25748.0,25747.0,0.08360012]
[1693939930531,1.704018,25748.0,25747.0,0.08360012]
[1693939933171,0.1505,25748.0,25747.0,0.08360012]
[1693939933379,0.824759,25748.0,25747.0,0.08360012]
[1693939933628,0.048,25748.0,25747.0,0.08360012]
[1693939933835,0.048,25748.0,25747.0,0.95244912]
[1693939934054,0.048,25748.0,25747.0,0.88038912]
[1693939934464,0.048,25748.0,25747.0,1.57366146]
[1693939934667,0.048,25748.0,25747.0,2.53075381]
[1693939934888,0.048,25748.0,25747.0,2.53633381]
[1693939935101,0.048,25748.0,25747.0,2.53393381]
[1693939935308,0.048,25748.0,25747.0,2.53465381]
[1693939935495,0.048,25748.0,25747.0,2.53375381]
[1693939935871,0.048,25748.0,25747.0,2.53303381]
[1693939936073,0.048,25748.0,25747.0,2.53261381]
[1693939936318,0.048,25748.0,25747.0,2.53393381]
[1693939936470,0.032674,25748.0,25747.0,2.53105381]
[1693939936672,0.032674,25748.0,25747.0,2.53033381]
[1693939936871,0.032674,25748.0,25747.0,2.53009381]
[1693939937071,0.032674,25748.0,25747.0,2.46415381]
[1693939937919,0.032674,25748.0,25747.0,2.34290146]
[1693939938117,0.032674,25748.0,25747.0,2.34266146]
[1693939938322,0.032674,25748.0,25747.0,2.50625007]
[1693939938524,0.032674,25748.0,25747.0,2.50607007]
[1693939938728,0.032674,25748.0,25747.0,2.34284146]
[1693939938926,0.032674,25748.0,25747.0,2.34326146]
[1693939939142,0.032674,25748.0,25747.0,2.52672072]
[1693939939305,0.032674,25748.0,25747.0,2.52480072]
[1693939939507,0.032674,25748.0,25747.0,2.52456072]
[1693939939712,0.032674,25748.0,25747.0,2.52432072]
[1693939939937,0.032674,25748.0,25747.0,2.52420072]
[1693939940135,0.032674,25748.0,25747.0,2.52402072]
[1693939940339,0.032674,25748.0,25747.0,2.52366072]
[1693939940540,0.032674,25748.0,25747.0,2.52354072]
[1693939940701,0.032674,25748.0,25747.0,2.52336072]
[1693939941057,0.032674,25748.0,25747.0,2.52342072]
[1693939941310,0.032674,25748.0,25747.0,2.52504072]
[1693939941486,0.032674,25748.0,25747.0,2.52474072]
[1693939941952,0.032674,25748.0,25747.0,2.52450072]
[1693939942125,0.032674,25748.0,25747.0,2.52462072]
[1693939942332,0.032674,25748.0,25747.0,3.12953046]
[1693939942560,0.032674,25748.0,25747.0,3.23605046]
[1693939942766,0.032674,25748.0,25747.0,3.25033046]
[1693939942971,0.032674,25748.0,25747.0,3.25363046]
[1693939943169,0.032674,25748.0,25747.0,3.38059046]
[1693939943342,0.032674,25748.0,25747.0,3.76171573]
[1693939943546,0.032674,25748.0,25747.0,3.76159573]
[1693939943747,0.032674,25748.0,25747.0,3.76153573]
[1693939943950,0.024,25748.0,25747.0,3.76133573]
[1693939944152,1.64629276,25753.0,25749.0,1.553428]
[1693939944329,1.64629276,25753.0,25750.0,0.776698]
[1693939944535,1.64629276,25753.0,25750.0,0.94733555]
[1693939944732,1.64629276,25753.0,25750.0,0.79267744]
[1693939945215,1.64629276,25753.0,25751.0,0.21699611]
[1693939945835,1.65689654,25753.0,25750.0,0.71597944]
[1693939946047,2.44352754,25753.0,25750.0,0.71697944]
[1693939946399,0.01175484,25752.0,25751.0,0.7]
[1693939946627,1.56503084,25752.0,25751.0,0.7]
[1693939946835,1.56503084,25752.0,25751.0,0.01597738]
[1693939947305,1.6580666,25752.0,25751.0,0.01597738]
[1693939947516,1.6580666,25752.0,25751.0,0.01797738]
[1693939947932,1.6580666,25752.0,25751.0,0.01597738]
[1693939948300,1.6750666,25752.0,25751.0,0.01797738]
[1693939948503,1.6750666,25752.0,25751.0,0.002]
[1693939951628,2.5542046,25752.0,25751.0,0.002]
[1693939952043,2.94084987,25752.0,25751.0,0.002]
[1693939953488,2.94084987,25752.0,25751.0,0.01797738]
[1693939953691,2.94084987,25752.0,25751.0,0.002]
[1693939955537,3.08040351,25752.0,25751.0,0.002]
[1693939956516,2.97561291,25752.0,25751.0,0.002]
[1693939956718,3.26418443,25752.0,25751.0,0.002]
[1693939957727,3.12463079,25752.0,25751.0,0.002]
[1693939960922,3.13602297,25752.0,25751.0,0.002]
[1693939961343,3.12463079,25752.0,25751.0,0.002]
[1693939961727,3.13413801,25752.0,25746.0,0.0330401]
[1693939961920,0.1025,25748.0,25746.0,0.0330401]
[1693939962269,0.776789,25747.0,25746.0,0.0330401]
[1693939962808,0.776789,25747.0,25746.0,0.0570401]
[1693939963010,0.776789,25747.0,25746.0,0.0560401]
[1693939963590,0.778789,25747.0,25746.0,0.0570401]
[1693939963716,0.780789,25747.0,25746.0,0.0800401]
[1693939964848,1.557578,25747.0,25746.0,0.0800401]
[1693939965899,0.780789,25747.0,25746.0,0.0800401]
[1693939966101,0.780789,25747.0,25746.0,0.7800401]
[1693939969282,0.004,25747.0,25746.0,0.7800401]
[1693939974869,0.004,25747.0,25746.0,0.0800401]
[1693939976291,0.004,25747.0,25746.0,0.047]
[1693939976292,0.780789,25747.0,25746.0,0.047]
[1693939976627,0.780789,25747.0,25746.0,0.06298768]
[1693939976813,1.557578,25747.0,25746.0,0.06298768]
[1693939983030,1.660078,25747.0,25746.0,0.06298768]
[1693939989263,0.883289,25747.0,25746.0,0.06298768]
[1693940000024,1.660078,25747.0,25746.0,0.06298768]
[1693940003876,2.03990663,25747.0,25746.0,0.06298768]
[1693940004077,3.4359591,25747.0,25746.0,0.06298768]
[1693940004206,3.43621235,25747.0,25746.0,0.06298768]
[1693940004412,3.43621235,25747.0,25746.0,0.047]
[1693940004613,3.34083696,25747.0,25746.0,0.024]
[1693940004788,3.3497608,25747.0,25746.0,0.0380243]
[1693940004990,3.3517608,25747.0,25746.0,0.0590243]
[1693940005433,3.34083696,25747.0,25746.0,0.0380243]
[1693940005861,3.33883696,25747.0,25746.0,0.0140243]
[1693940006322,3.33883696,25747.0,25746.0,0.024]
[1693940006323,3.52729871,25747.0,25746.0,0.024]
[1693940006474,3.52729871,25747.0,25746.0,0.03798049]
[1693940006879,3.53729871,25747.0,25746.0,0.025]
[1693940007288,3.29470931,25747.0,25746.0,0.024]
[1693940007548,3.31870931,25747.0,25746.0,0.026]
[1693940007744,3.31670931,25747.0,25746.0,0.002]
[1693940009592,3.34070931,25747.0,25746.0,0.004]
[1693940010199,3.48049301,25747.0,25746.0,0.004]
[1693940010401,3.49001095,25747.0,25746.0,0.004]
[1693940010921,3.34070931,25747.0,25746.0,0.004]
[1693940011097,3.44683696,25747.0,25746.0,0.004]
[1693940011299,3.52683696,25747.0,25746.0,0.004]
[1693940011498,3.92933696,25747.0,25746.0,0.004]
[1693940011844,3.99010329,25747.0,25746.0,0.004]
[1693940012024,3.75751389,25747.0,25746.0,0.004]
[1693940012230,3.92963897,25747.0,25746.0,0.004]
[1693940014951,4.11590762,25747.0,25746.0,0.004]
[1693940018126,3.88301621,25747.0,25746.0,0.004]
[1693940018975,3.88301621,25747.0,25746.0,0.0050069]
[1693940020142,4.02267941,25747.0,25746.0,0.0050069]
[1693940020822,3.88301621,25747.0,25746.0,0.0050069]
[1693940021016,4.02267912,25747.0,25746.0,0.0050069]
[1693940021404,4.03341141,25747.0,25746.0,0.0050069]
[1693940021611,3.74464276,25747.0,25746.0,0.0050069]
[1693940022706,3.83774678,25747.0,25746.0,0.0050069]
[1693940023043,3.74464276,25747.0,25746.0,0.0050069]
[1693940025362,3.73391047,25747.0,25746.0,0.0050069]
[1693940027389,3.74528492,25747.0,25746.0,0.0050069]
[1693940028562,3.73391047,25747.0,25746.0,0.0050069]
[1693940029143,3.82700943,25747.0,25746.0,0.0050069]
[1693940029481,3.82700802,25747.0,25746.0,0.0050069]
[1693940030551,3.73391047,25747.0,25746.0,0.0050069]
[1693940030913,3.8270085,25747.0,25746.0,0.0050069]
[1693940031229,3.82700972,25747.0,25746.0,0.0050069]
[1693940031404,3.73391047,25747.0,25746.0,0.0050069]
[1693940032635,3.74371029,25747.0,25746.0,0.0050069]
[1693940033231,3.73391047,25747.0,25746.0,0.0050069]
[1693940035338,3.71391047,25747.0,25746.0,0.0050069]
[1693940035541,3.67391047,25747.0,25746.0,0.0050069]
[1693940037300,3.73467508,25747.0,25746.0,0.0050069]
[1693940037757,3.92094373,25747.0,25746.0,0.0050069]
[1693940040262,3.78128082,25747.0,25746.0,0.0050069]
[1693940040760,3.92093798,25747.0,25746.0,0.0050069]
[1693940040978,3.78128082,25747.0,25746.0,0.0050069]
[1693940042234,4.01417223,25747.0,25746.0,0.0050069]
[1693940043023,3.82790358,25747.0,25746.0,0.0050069]
[1693940043786,3.84790358,25747.0,25746.0,0.0050069]
[1693940045017,3.61501217,25747.0,25746.0,0.0050069]
[1693940047051,3.61501217,25747.0,25746.0,0.0043615]
[1693940047885,3.6465098,25747.0,25746.0,0.0043615]
[1693940049183,3.92561709,25747.0,25746.0,0.0043615]
[1693940051699,3.92620315,25747.0,25746.0,0.0043615]
[1693940068582,3.9260736,25747.0,25746.0,0.0043615]
[1693940077812,3.93752991,25747.0,25746.0,0.0043615]
[1693940078010,3.63933831,25747.0,25746.0,0.0043615]
[1693940080968,3.60784068,25747.0,25746.0,0.0043615]
[1693940081425,3.32827688,25747.0,25746.0,0.0043615]
[1693940081627,3.60784068,25747.0,25746.0,0.0043615]
[1693940081841,3.99448595,25747.0,25746.0,0.0043615]
[1693940085763,3.71492215,25747.0,25746.0,0.0043615]
[1693940085966,3.69492215,25747.0,25746.0,0.0043615]
[1693940089907,3.72621799,25747.0,25746.0,0.0043615]
[1693940090112,4.00592919,25747.0,25746.0,0.0043615]
[1693940091006,4.00593885,25747.0,25746.0,0.0043615]
[1693940091847,3.72621799,25747.0,25746.0,0.0043615]
[1693940092987,4.00594495,25747.0,25746.0,0.0043615]
[1693940093392,3.72621799,25747.0,25746.0,0.0043615]
[1693940097301,0.06,25744.0,25742.0,0.1624]
[1693940097637,3.0529728,25743.0,25742.0,0.1624]
[1693940097846,3.43961807,25743.0,25741.0,0.0001]
[1693940098040,0.42883578,25742.0,25741.0,0.0001]
[1693940098238,3.14630105,25742.0,25741.0,0.0001]
[1693940098653,2.81996527,25742.0,25741.0,0.0001]
[1693940098846,3.14628177,25742.0,25741.0,0.0001]
[1693940098996,3.53292704,25742.0,25741.0,0.0001]
[1693940099982,3.53492704,25742.0,25741.0,0.0221]
[1693940100307,3.53792704,25742.0,25741.0,0.0221]
[1693940100535,3.39807711,25742.0,25741.0,0.0221]
[1693940105049,3.69116032,25742.0,25741.0,0.0221]
[1693940105258,3.45607711,25742.0,25741.0,0.0001]
[1693940105563,3.45807711,25742.0,25741.0,0.0201]
[1693940105768,3.50169375,25742.0,25741.0,0.0201]
[1693940105976,3.5015718,25742.0,25741.0,0.0201]
[1693940106183,3.5035718,25742.0,25741.0,0.0201]
[1693940106859,3.65126563,25742.0,25741.0,0.0201]
[1693940107519,3.93096549,25742.0,25741.0,0.0201]
[1693940107773,3.92896549,25742.0,25741.0,0.0201]
[1693940107980,4.00884354,25742.0,25741.0,0.0201]
[1693940108191,4.00844036,25742.0,25741.0,0.0201]
[1693940108828,4.03044036,25742.0,25741.0,0.0001]
[1693940109239,4.36124036,25742.0,25741.0,0.0021]
[1693940109652,4.10214036,25742.0,25741.0,0.0001]
[1693940109861,4.12601841,25742.0,25741.0,0.0021]
[1693940110068,4.31981841,25742.0,25741.0,0.0021]
[1693940110276,4.12589646,25742.0,25741.0,0.0021]
[1693940111022,4.15749716,25742.0,25741.0,0.0021]
[1693940111388,3.87820048,25742.0,25741.0,0.0021]
[1693940112000,3.87807853,25742.0,25741.0,0.0021]
[1693940112809,3.87795658,25742.0,25741.0,0.0021]
[1693940112996,3.72625658,25742.0,25741.0,0.0021]
[1693940113408,3.73778703,25742.0,25741.0,0.0021]
[1693940113788,3.73766508,25742.0,25741.0,0.0021]
[1693940115340,3.97014271,25742.0,25741.0,0.0021]
[1693940117217,3.90936567,25742.0,25741.0,0.0021]
[1693940118304,4.09528532,25742.0,25741.0,0.0021]
[1693940119184,4.15424485,25742.0,25741.0,0.0021]
[1693940119388,3.92176722,25742.0,25741.0,0.0021]
[1693940121175,4.06118188,25742.0,25741.0,0.0021]
[1693940122365,3.87526223,25742.0,25741.0,0.0021]
[1693940122753,4.06118188,25742.0,25741.0,0.0021]
[1693940123007,3.87526223,25742.0,25741.0,0.0021]
[1693940126611,3.8163027,25742.0,25741.0,0.0021]
[1693940127199,3.42965743,25742.0,25741.0,0.0021]
[1693940128121,3.49044097,25742.0,25741.0,0.0021]
[1693940128659,3.42965743,25742.0,25741.0,0.0021]
[1693940129212,3.49044058,25742.0,25741.0,0.0021]
[1693940131473,3.58338233,25742.0,25741.0,0.0021]
[1693940131675,3.87708585,25742.0,25741.0,0.0021]
[1693940131936,3.97002925,25742.0,25741.0,0.0021]
[1693940132349,3.97003331,25742.0,25741.0,0.0021]
[1693940133697,3.96991136,25742.0,25741.0,0.0021]
[1693940134184,3.8769639,25742.0,25741.0,0.0021]
[1693940134392,3.96980044,25742.0,25741.0,0.0021]
[1693940134783,3.87684194,25742.0,25741.0,0.0021]
[1693940135164,3.96967862,25742.0,25741.0,0.0021]
[1693940135492,3.86518954,25742.0,25741.0,0.0021]
[1693940135926,3.95815487,25742.0,25741.0,0.0021]
[1693940136133,3.86518954,25742.0,25741.0,0.0021]
[1693940136317,4.05110919,25742.0,25741.0,0.0021]
[1693940136660,4.05115238,25742.0,25741.0,0.0021]
[1693940136877,3.91169453,25742.0,25741.0,0.0021]
[1693940137278,3.52504926,25742.0,25741.0,0.0021]
[1693940137573,3.52492731,25742.0,25741.0,0.0021]
[1693940138366,3.52480536,25742.0,25741.0,0.0021]
[1693940139085,3.52468341,25742.0,25741.0,0.0021]
[1693940140272,3.75716104,25742.0,25741.0,0.0021]
[1693940141210,3.57124139,25742.0,25741.0,0.0021]
[1693940141356,3.57111944,25742.0,25741.0,0.0021]
[1693940142428,3.57099749,25742.0,25741.0,0.0021]
[1693940143283,3.57087554,25742.0,25741.0,0.0021]
[1693940144212,3.33839791,25742.0,25741.0,0.0021]
[1693940144466,3.49636731,25742.0,25741.0,0.0021]
[1693940144675,3.05897101,25742.0,25741.0,0.0021]
[1693940144892,2.14227826,25742.0,25741.0,0.15691736]
[1693940145130,1.98840332,25742.0,25741.0,0.15724538]
[1693940145333,2.76534332,25742.0,25741.0,0.01170654]
[1693940145534,2.74134332,25742.0,25741.0,0.01170654]
[1693940145780,2.71722137,25742.0,25741.0,0.00970654]
[1693940145982,2.76522137,25742.0,25741.0,0.01170654]
[1693940146192,2.74122137,25742.0,25741.0,0.00970654]
[1693940146370,2.71709942,25742.0,25741.0,0.00970654]
[1693940146570,2.76309942,25742.0,25741.0,0.01170654]
[1693940147308,2.76297747,25742.0,25741.0,0.01170654]
[1693940148134,2.76285552,25742.0,25741.0,0.01170654]
[1693940149787,2.85582536,25742.0,25741.0,0.01170654]
[1693940149995,2.76273357,25742.0,25741.0,0.01170654]
[1693940150244,2.85582536,25742.0,25741.0,0.01170654]
[1693940150445,2.85570341,25742.0,25741.0,0.01170654]
[1693940151707,2.85570341,25742.0,25741.0,0.04570703]
[1693940152066,2.85570341,25742.0,25741.0,0.74570703]
[1693940153056,2.76261162,25742.0,25741.0,0.74570703]
[1693940153267,1.98567162,25742.0,25741.0,0.74570703]
[1693940153963,1.98554967,25742.0,25741.0,0.74570703]
[1693940155049,2.76248967,25742.0,25741.0,0.74570703]
[1693940155276,1.98554967,25742.0,25741.0,0.74570703]
[1693940155818,1.98542772,25742.0,25741.0,0.74570703]
[1693940156022,2.07851951,25742.0,25741.0,0.74570703]
[1693940156222,1.98542772,25742.0,25741.0,0.74570703]
[1693940156434,1.98530577,25742.0,25741.0,0.74570703]
[1693940157250,1.98530577,25742.0,25741.0,0.04570703]
[1693940157664,0.82294,25742.0,25741.0,0.04570703]
[1693940157885,0.046,25742.0,25741.0,1.70214703]
[1693940158091,0.046,25742.0,25741.0,1.59964703]
[1693940158299,0.04587805,25742.0,25741.0,1.59964703]
[1693940158719,0.024,25742.0,25741.0,2.29764703]
[1693940158927,1.64685486,25744.0,25741.0,2.29764703]
[1693940159135,0.002,25742.0,25741.0,2.30364703]
[1693940159343,0.001,25742.0,25741.0,2.29964703]
[1693940159549,1.553781,25744.0,25741.0,2.29764703]
[1693940159964,0.00187805,25742.0,25741.0,2.30264703]
[1693940160166,0.00187805,25742.0,25741.0,1.52567703]
[1693940160378,0.00187805,25742.0,25741.0,2.47114654]
[1693940160585,0.00187805,25742.0,25741.0,2.63925613]
[1693940160788,0.00387805,25742.0,25741.0,2.66125613]
[1693940160993,0.00387805,25742.0,25741.0,2.49314654]
[1693940161196,0.002,25742.0,25741.0,2.6569196]
[1693940161602,0.002,25742.0,25741.0,1.8799496]
[1693940162025,0.002,25742.0,25741.0,1.8849496]
[1693940162433,0.002,25742.0,25741.0,1.8799496]
[1693940163233,0.004,25742.0,25741.0,1.8849496]
[1693940163657,0.004,25742.0,25741.0,1.71617654]
[1693940163874,0.004,25742.0,25741.0,3.34379654]
[1693940164083,0.004,25742.0,25741.0,3.37999654]
[1693940164293,0.00387805,25742.0,25741.0,3.77576181]
[1693940164503,0.00387805,25742.0,25741.0,3.78386181]
[1693940164712,0.00387805,25742.0,25741.0,3.78380181]
[1693940164861,0.776767,25748.0,25745.0,0.02]
[1693940165069,0.776767,25748.0,25746.0,0.15465811]
[1693940165496,1.553546,25748.0,25745.0,2.273675]
[1693940165658,1.553546,25748.0,25747.0,0.00899625]
[1693940165859,1.554546,25748.0,25747.0,0.00899625]
[1693940166177,1.554546,25748.0,25747.0,0.00032526]
[1693940166349,1.553546,25748.0,25747.0,0.00032526]
[1693940166745,1.564546,25748.0,25747.0,0.00132526]
[1693940167147,1.564546,25748.0,25747.0,0.16282457]
[1693940167902,1.572546,25748.0,25747.0,0.16382457]
[1693940169372,1.572546,25748.0,25747.0,0.86382457]
[1693940169571,0.795767,25748.0,25747.0,0.86382457]
[1693940170431,0.019,25748.0,25747.0,0.86382457]
[1693940170642,0.019,25748.0,25747.0,1.64061357]
[1693940170831,0.019,25748.0,25747.0,0.86382457]
[1693940171094,0.795759,25748.0,25747.0,0.86382457]
[1693940171299,0.019,25748.0,25747.0,0.86382457]
[1693940171466,0.019,25748.0,25747.0,0.87278137]
[1693940171865,0.019,25748.0,25747.0,2.44635937]
[1693940172035,0.019,25748.0,25747.0,3.30314837]
[1693940172239,0.0188781,25748.0,25747.0,2.52635937]
[1693940172450,0.0188781,25748.0,25747.0,1.74957037]
[1693940172858,0.0188781,25748.0,25747.0,0.97278137]
[1693940173311,0.0187562,25748.0,25747.0,0.97278137]
[1693940173915,0.0186343,25748.0,25747.0,0.97278137]
[1693940174760,0.0185124,25748.0,25747.0,0.27278137]
[1693940175188,0.7952714,25748.0,25747.0,0.27278137]
[1693940176496,0.7951495,25748.0,25747.0,0.27278137]
[1693940177454,0.7950276,25748.0,25747.0,0.27278137]
[1693940178078,0.7949057,25748.0,25747.0,0.27278137]
[1693940178659,0.7949057,25748.0,25747.0,0.97278137]
[1693940178915,0.7947838,25748.0,25747.0,0.97278137]
[1693940179706,0.7946619,25748.0,25747.0,0.97278137]
[1693940181403,0.79454,25748.0,25747.0,0.97278137]
[1693940182005,0.7944181,25748.0,25747.0,0.97278137]
[1693940183844,0.7942962,25748.0,25747.0,0.97278137]
[1693940186171,0.7942962,25748.0,25747.0,0.27278137]
[1693940187158,2.35847983,25748.0,25747.0,0.11128206]
[1693940187997,2.35847983,25748.0,25747.0,0.03128206]
[1693940196186,1.58172083,25748.0,25747.0,0.03128206]
[1693940196569,1.5710552,25748.0,25747.0,0.03128206]
[1693940196766,1.5710552,25748.0,25747.0,0.14626774]
[1693940197858,1.5710552,25748.0,25747.0,0.84626774]
[1693940207369,1.66407663,25748.0,25747.0,0.84626774]
[1693940209185,1.80360878,25748.0,25747.0,0.84626774]
[1693940209401,1.80360878,25748.0,25747.0,0.84636774]
[1693940209600,1.71058735,25748.0,25747.0,0.84636774]
[1693940210244,0.93382835,25748.0,25747.0,0.84636774]
[1693940211591,1.11987122,25748.0,25747.0,0.84636774]
[1693940212129,0.98033907,25748.0,25747.0,0.84636774]
[1693940214002,0.98021713,25748.0,25747.0,0.84636774]
[1693940217252,0.98021713,25748.0,25747.0,0.82636774]
[1693940218702,1.21277072,25748.0,25747.0,0.82636774]
[1693940221323,0.01741526,25748.0,25747.0,0.82636774]
[1693940221546,0.4372156,25748.0,25747.0,0.82636774]
[1693940222119,0.4372156,25748.0,25747.0,1.60315674]
[1693940222120,0.20399319,25748.0,25747.0,1.60315674]
[1693940222682,0.34392243,25748.0,25747.0,1.60315674]
[1693940226534,0.1573445,25748.0,25747.0,1.60315674]
[1693940231340,0.25060851,25748.0,25747.0,1.60315674]
[1693940231542,0.25060806,25748.0,25747.0,1.60315674]
[1693940231741,0.25060665,25748.0,25747.0,1.60315674]
[1693940232388,0.1573445,25748.0,25747.0,1.60315674]
[1693940232583,0.2506062,25748.0,25747.0,1.60315674]
[1693940233830,0.2506062,25748.0,25747.0,1.59419994]
[1693940238272,0.2506062,25748.0,25747.0,2.37098894]
[1693940238703,0.1573445,25748.0,25747.0,2.37098894]
[1693940240139,0.25060713,25748.0,25747.0,2.37098894]
[1693940240753,0.1573445,25748.0,25747.0,1.59419994]
[1693940241492,0.25061005,25748.0,25747.0,1.59419994]
[1693940241670,0.25061237,25748.0,25747.0,1.59419994]
[1693940242482,0.1573445,25748.0,25747.0,1.59419994]
[1693940244096,0.1573445,25748.0,25747.0,0.81741094]
[1693940244704,0.15732077,25748.0,25747.0,0.81741094]
[1693940244930,0.93407977,25748.0,25747.0,0.81741094]
[1693940245893,0.93407977,25748.0,25747.0,0.11741094]
[1693940253491,0.15732077,25748.0,25747.0,0.11741094]
[1693940254983,0.11068969,25748.0,25747.0,0.11741094]
[1693940255157,0.11068969,25748.0,25747.0,1.67098894]
[1693940255525,0.11068969,25748.0,25747.0,2.47348894]
[1693940255739,0.01729332,25748.0,25747.0,2.47348894]
[1693940255954,0.01717138,25748.0,25747.0,2.47348894]
[1693940256134,0.23317994,25749.0,25747.0,2.47348894]
[1693940256135,0.23317994,25749.0,25747.0,2.47148894]
[1693940256336,0.09327443,25749.0,25747.0,2.47148894]
[1693940256511,0.002,25748.0,25747.0,2.48948894]
[1693940256718,0.09327443,25749.0,25747.0,2.47148894]
[1693940257239,0.002,25748.0,25747.0,2.48948894]
[1693940257440,0.004,25748.0,25747.0,2.50548894]
[1693940257891,0.09327443,25749.0,25747.0,2.47148894]
[1693940258070,0.23517994,25749.0,25747.0,2.48948894]
[1693940258216,0.23717994,25749.0,25747.0,2.50548894]
[1693940258633,0.23517994,25749.0,25748.0,0.13427971]
[1693940258842,0.23517994,25749.0,25748.0,0.83427971]
[1693940259043,0.09527443,25749.0,25748.0,0.83454545]
[1693940259795,0.09327443,25749.0,25748.0,0.83454545]
[1693940259978,0.23317994,25749.0,25748.0,0.83454545]
[1693940260483,0.23317994,25749.0,25748.0,0.84354545]
[1693940260830,0.23617994,25749.0,25748.0,0.84354545]